[Event "January 2 Early 2024"]
[Site "https://www.chess.com"]
[Date "2024.01.02"]
[Round "9"]
[White "Sarana, Alexey"]
[Black "Klimkowski, Jan"]
[Result "0-1"]
[Board "12"]
[TimeControl "180+1"]
[WhiteFideId "24133795"]
[BlackFideId "21856222"]
[WhiteElo "3029"]
[BlackElo "2931"]
[WhiteTeam "SRB"]
[BlackTeam "POL"]
[WhiteClock "0:00:23"]
[BlackClock "0:00:07"]

1. d4 {[%clk 0:02:54]}  Nf6 {[%clk 0:03:00]} 2. c4 {[%clk 0:02:55]}  e6 {[%clk 0:03:00]} 3. Nc3 {[%clk 0:02:55]}  Bb4 {[%clk 0:03:00]} 4. e3 {[%clk 0:02:56]}  O-O {[%clk 0:02:59]} 5. Bd3 {[%clk 0:02:57]}  d5 {[%clk 0:02:57]} 6. a3 {[%clk 0:02:57]}  Bxc3+ {[%clk 0:02:54]} 7. bxc3 {[%clk 0:02:58]}  c5 {[%clk 0:02:54]} 8. cxd5 {[%clk 0:02:58]}  exd5 {[%clk 0:02:54]} 9. Ne2 {[%clk 0:02:58]}  Nc6 {[%clk 0:02:49]} 10. f3 {[%clk 0:02:57]}  Re8 {[%clk 0:02:39]} 11. O-O {[%clk 0:02:57]}  b6 {[%clk 0:02:30]} 12. g4 {[%clk 0:02:57]}  h6 {[%clk 0:02:25]} 13. Ng3 {[%clk 0:02:57]}  a5 {[%clk 0:02:24]} 14. Ra2 {[%clk 0:02:46]}  c4 {[%clk 0:02:18]} 15. Bb1 {[%clk 0:02:46]}  b5 {[%clk 0:02:18]} 16. Rg2 {[%clk 0:02:33]}  b4 {[%clk 0:02:16]} 17. h4 {[%clk 0:02:13]}  Nh7 {[%clk 0:01:52]} 18. Rh2 {[%clk 0:02:08]}  Nf8 {[%clk 0:01:47]} 19. f4 {[%clk 0:02:01]}  Rb8 {[%clk 0:01:24]} 20. g5 {[%clk 0:02:01]}  bxc3 {[%clk 0:01:11]} 21. Bc2 {[%clk 0:02:00]}  Rb2 {[%clk 0:00:58]} 22. gxh6 {[%clk 0:01:58]}  gxh6 {[%clk 0:00:23]} 23. f5 {[%clk 0:01:56]}  Nh7 {[%clk 0:00:17]} 24. Qh5 {[%clk 0:01:46]}  Qf6 {[%clk 0:00:15]} 25. Qf3 {[%clk 0:01:34]}  Kh8 {[%clk 0:00:09]} 26. Nh5 {[%clk 0:01:29]}  Qd6 {[%clk 0:00:06]} 27. Rg2 {[%clk 0:01:27]}  Nf6 {[%clk 0:00:06]} 28. Nxf6 {[%clk 0:01:24]}  Qxf6 {[%clk 0:00:07]} 29. Qxd5 {[%clk 0:01:25]}  Bb7 {[%clk 0:00:07]} 30. Bxb2 {[%clk 0:01:10]}  cxb2 {[%clk 0:00:07]} 31. Qb5 {[%clk 0:01:11]}  Rxe3 {[%clk 0:00:06]} 32. Qxb7 {[%clk 0:01:10]}  Qxd4 {[%clk 0:00:07]} 33. Qa8+ {[%clk 0:00:34]}  Re8+ {[%clk 0:00:07]} 34. Kh1 {[%clk 0:00:29]}  Rxa8 {[%clk 0:00:07]} 35. f6 {[%clk 0:00:27]}  Rg8 {[%clk 0:00:06]} 36. Rxg8+ {[%clk 0:00:25]}  Kxg8 {[%clk 0:00:07]} 37. Re1 {[%clk 0:00:26]}  Qxh4+ {[%clk 0:00:07]} 38. Kg2 {[%clk 0:00:23]}  Qxe1 {[%clk 0:00:07]} 0-1

[Event "January 2 Early 2024"]
[Site "https://www.chess.com"]
[Date "2024.01.02"]
[Round "9"]
[White "Corrales Jimenez, Fidel"]
[Black "Fedoseev, Vladimir"]
[Result "0-1"]
[Board "13"]
[TimeControl "180+1"]
[WhiteFideId "3506690"]
[BlackFideId "24130737"]
[WhiteElo "2938"]
[BlackElo "3021"]
[WhiteTeam "USA"]
[BlackTeam "SLO"]
[WhiteClock "0:00:10"]
[BlackClock "0:00:34"]

1. d4 {[%clk 0:03:00]}  Nf6 {[%clk 0:02:56]} 2. c4 {[%clk 0:02:59]}  b6 {[%clk 0:02:56]} 3. Nc3 {[%clk 0:02:59]}  Bb7 {[%clk 0:02:52]} 4. a3 {[%clk 0:02:55]}  g6 {[%clk 0:02:45]} 5. f3 {[%clk 0:02:52]}  d5 {[%clk 0:02:45]} 6. cxd5 {[%clk 0:02:52]}  Nxd5 {[%clk 0:02:45]} 7. Nxd5 {[%clk 0:02:50]}  Qxd5 {[%clk 0:02:44]} 8. e4 {[%clk 0:02:50]}  Qd7 {[%clk 0:02:45]} 9. Be3 {[%clk 0:02:50]}  Bg7 {[%clk 0:02:46]} 10. Qd2 {[%clk 0:02:49]}  O-O {[%clk 0:02:40]} 11. Bc4 {[%clk 0:02:45]}  c5 {[%clk 0:02:21]} 12. Ne2 {[%clk 0:02:11]}  cxd4 {[%clk 0:02:16]} 13. Nxd4 {[%clk 0:02:07]}  Rd8 {[%clk 0:02:13]} 14. Rd1 {[%clk 0:02:04]}  Qc8 {[%clk 0:02:00]} 15. Nf5 {[%clk 0:01:08]}  Rxd2 {[%clk 0:01:47]} 16. Nxe7+ {[%clk 0:01:08]}  Kf8 {[%clk 0:01:47]} 17. Nxc8 {[%clk 0:01:08]}  Rxd1+ {[%clk 0:01:47]} 18. Kxd1 {[%clk 0:01:09]}  Nc6 {[%clk 0:01:41]} 19. Nxa7 {[%clk 0:00:53]}  Nxa7 {[%clk 0:01:37]} 20. Bxb6 {[%clk 0:00:53]}  Bxb2 {[%clk 0:01:36]} 21. a4 {[%clk 0:00:50]}  Nc6 {[%clk 0:01:31]} 22. Kc2 {[%clk 0:00:50]}  Ba3 {[%clk 0:01:00]} 23. Kb3 {[%clk 0:00:47]}  Be7 {[%clk 0:00:57]} 24. Rd1 {[%clk 0:00:46]}  Na5+ {[%clk 0:00:52]} 25. Bxa5 {[%clk 0:00:46]}  Rxa5 {[%clk 0:00:53]} 26. Bb5 {[%clk 0:00:44]}  Bc8 {[%clk 0:00:53]} 27. Rc1 {[%clk 0:00:40]}  Be6+ {[%clk 0:00:52]} 28. Kb2 {[%clk 0:00:40]}  Bf6+ {[%clk 0:00:50]} 29. Ka3 {[%clk 0:00:40]}  Be7+ {[%clk 0:00:49]} 30. Kb2 {[%clk 0:00:40]}  h5 {[%clk 0:00:47]} 31. Rc7 {[%clk 0:00:36]}  Bd6 {[%clk 0:00:46]} 32. Rc6 {[%clk 0:00:35]}  Bxh2 {[%clk 0:00:46]} 33. Kc3 {[%clk 0:00:32]}  Bg3 {[%clk 0:00:46]} 34. Kb4 {[%clk 0:00:30]}  Be1+ {[%clk 0:00:46]} 35. Kc5 {[%clk 0:00:31]}  Bb3 {[%clk 0:00:37]} 36. Rc8+ {[%clk 0:00:17]}  Kg7 {[%clk 0:00:37]} 37. Kb6 {[%clk 0:00:11]}  Bxa4 {[%clk 0:00:37]} 38. Bc4 {[%clk 0:00:12]}  Re5 {[%clk 0:00:35]} 39. Rc7 {[%clk 0:00:10]}  Ba5+ {[%clk 0:00:34]} 0-1

[Event "January 2 Early 2024"]
[Site "https://www.chess.com"]
[Date "2024.01.02"]
[Round "9"]
[White "Makhnev, Denis"]
[Black "Navara, David"]
[Result "1/2-1/2"]
[Board "16"]
[TimeControl "180+1"]
[WhiteFideId "13707647"]
[BlackFideId "309095"]
[WhiteElo "2923"]
[BlackElo "2989"]
[WhiteTeam "KAZ"]
[BlackTeam "CZE"]
[WhiteClock "0:00:34"]
[BlackClock "0:00:24"]

1. d4 {[%clk 0:03:00]}  Nf6 {[%clk 0:03:00]} 2. c4 {[%clk 0:02:57]}  e6 {[%clk 0:03:00]} 3. Nc3 {[%clk 0:02:58]}  Bb4 {[%clk 0:03:00]} 4. e3 {[%clk 0:02:59]}  O-O {[%clk 0:03:00]} 5. Bd3 {[%clk 0:02:59]}  d5 {[%clk 0:03:00]} 6. a3 {[%clk 0:03:00]}  Bxc3+ {[%clk 0:02:59]} 7. bxc3 {[%clk 0:03:00]}  dxc4 {[%clk 0:03:00]} 8. Bxc4 {[%clk 0:03:01]}  c5 {[%clk 0:03:01]} 9. Ne2 {[%clk 0:03:02]}  Qc7 {[%clk 0:03:00]} 10. Bd3 {[%clk 0:03:02]}  b6 {[%clk 0:02:53]} 11. O-O {[%clk 0:03:00]}  Bb7 {[%clk 0:02:48]} 12. Ng3 {[%clk 0:02:53]}  Nc6 {[%clk 0:02:33]} 13. Bb2 {[%clk 0:02:52]}  Rfd8 {[%clk 0:02:32]} 14. f4 {[%clk 0:02:41]}  Rac8 {[%clk 0:02:16]} 15. Qe2 {[%clk 0:02:40]}  Qe7 {[%clk 0:02:01]} 16. Rad1 {[%clk 0:02:32]}  g6 {[%clk 0:01:57]} 17. h3 {[%clk 0:02:19]}  Ne8 {[%clk 0:01:35]} 18. Qf2 {[%clk 0:02:16]}  Nd6 {[%clk 0:01:21]} 19. e4 {[%clk 0:02:14]}  cxd4 {[%clk 0:01:18]} 20. cxd4 {[%clk 0:02:13]}  Na5 {[%clk 0:01:19]} 21. f5 {[%clk 0:02:04]}  exf5 {[%clk 0:01:09]} 22. d5 {[%clk 0:01:59]}  Nac4 {[%clk 0:01:06]} 23. Ba1 {[%clk 0:01:59]}  Ne5 {[%clk 0:01:03]} 24. exf5 {[%clk 0:01:58]}  Re8 {[%clk 0:00:48]} 25. Bb1 {[%clk 0:01:50]}  Qg5 {[%clk 0:00:42]} 26. fxg6 {[%clk 0:01:35]}  hxg6 {[%clk 0:00:40]} 27. Rde1 {[%clk 0:01:22]}  Ba6 {[%clk 0:00:30]} 28. h4 {[%clk 0:01:22]}  Qxh4 {[%clk 0:00:26]} 29. Bxe5 {[%clk 0:01:23]}  Bxf1 {[%clk 0:00:21]} 30. Bxd6 {[%clk 0:01:23]}  Rxe1 {[%clk 0:00:15]} 31. Qxe1 {[%clk 0:01:23]}  Qd4+ {[%clk 0:00:13]} 32. Qf2 {[%clk 0:01:23]}  Qxf2+ {[%clk 0:00:09]} 33. Kxf2 {[%clk 0:01:24]}  Bc4 {[%clk 0:00:09]} 34. Be4 {[%clk 0:01:25]}  f5 {[%clk 0:00:07]} 35. Bf3 {[%clk 0:01:24]}  Kf7 {[%clk 0:00:06]} 36. Ke3 {[%clk 0:01:25]}  Rd8 {[%clk 0:00:03]} 37. Bc7 {[%clk 0:01:25]}  Rxd5 {[%clk 0:00:03]} 38. Bxd5+ {[%clk 0:01:25]}  Bxd5 {[%clk 0:00:04]} 39. Kf2 {[%clk 0:01:25]}  Ke6 {[%clk 0:00:03]} 40. Ne2 {[%clk 0:01:26]}  g5 {[%clk 0:00:04]} 41. Bb8 {[%clk 0:01:26]}  a6 {[%clk 0:00:03]} 42. Nd4+ {[%clk 0:01:26]}  Kf6 {[%clk 0:00:03]} 43. Bc7 {[%clk 0:01:27]}  b5 {[%clk 0:00:03]} 44. g3 {[%clk 0:01:27]}  f4 {[%clk 0:00:03]} 45. gxf4 {[%clk 0:01:28]}  gxf4 {[%clk 0:00:03]} 46. Bxf4 {[%clk 0:01:28]}  Bc4 {[%clk 0:00:03]} 47. Ke3 {[%clk 0:01:28]}  a5 {[%clk 0:00:03]} 48. Bc7 {[%clk 0:01:28]}  b4 {[%clk 0:00:03]} 49. a4 {[%clk 0:01:29]}  b3 {[%clk 0:00:03]} 50. Kd2 {[%clk 0:01:27]}  Bf7 {[%clk 0:00:02]} 51. Kc3 {[%clk 0:01:25]}  Be8 {[%clk 0:00:01]} 52. Nb5 {[%clk 0:01:25]}  Ke7 {[%clk 0:00:02]} 53. Kxb3 {[%clk 0:01:24]}  Kd7 {[%clk 0:00:02]} 54. Bxa5 {[%clk 0:01:24]}  Kc6 {[%clk 0:00:03]} 55. Kb4 {[%clk 0:01:24]}  Bd7 {[%clk 0:00:02]} 56. Bd8 {[%clk 0:01:14]}  Kb7 {[%clk 0:00:03]} 57. Nd6+ {[%clk 0:01:14]}  Ka6 {[%clk 0:00:03]} 58. a5 {[%clk 0:01:15]}  Bc6 {[%clk 0:00:03]} 59. Kc5 {[%clk 0:01:14]}  Bf3 {[%clk 0:00:03]} 60. Bb6 {[%clk 0:01:14]}  Bg2 {[%clk 0:00:03]} 61. Kd4 {[%clk 0:01:13]}  Bc6 {[%clk 0:00:03]} 62. Ke5 {[%clk 0:01:14]}  Bd7 {[%clk 0:00:03]} 63. Kf6 {[%clk 0:01:14]}  Bc6 {[%clk 0:00:03]} 64. Ke7 {[%clk 0:01:14]}  Bd7 {[%clk 0:00:03]} 65. Ne4 {[%clk 0:01:12]}  Bc6 {[%clk 0:00:03]} 66. Nc5+ {[%clk 0:01:13]}  Kb5 {[%clk 0:00:04]} 67. Kd6 {[%clk 0:01:14]}  Bg2 {[%clk 0:00:03]} 68. Ne6 {[%clk 0:01:14]}  Ka6 {[%clk 0:00:03]} 69. Kc7 {[%clk 0:01:13]}  Bd5 {[%clk 0:00:01]} 70. Nc5+ {[%clk 0:01:11]}  Kb5 {[%clk 0:00:02]} 71. a6 {[%clk 0:01:08]}  Bf3 {[%clk 0:00:02]} 72. a7 {[%clk 0:01:08]}  Ba8 {[%clk 0:00:02]} 73. Kb8 {[%clk 0:01:07]}  Kxb6 {[%clk 0:00:01]} 74. Kxa8 {[%clk 0:01:06]}  Kc7 {[%clk 0:00:02]} 75. Nd3 {[%clk 0:01:01]}  Kc8 {[%clk 0:00:03]} 76. Nb4 {[%clk 0:01:01]}  Kc7 {[%clk 0:00:04]} 77. Nc2 {[%clk 0:00:59]}  Kc8 {[%clk 0:00:05]} 78. Ne3 {[%clk 0:00:58]}  Kc7 {[%clk 0:00:06]} 79. Nc4 {[%clk 0:00:58]}  Kc8 {[%clk 0:00:07]} 80. Nd2 {[%clk 0:00:43]}  Kc7 {[%clk 0:00:08]} 81. Nf3 {[%clk 0:00:44]}  Kc8 {[%clk 0:00:09]} 82. Nh4 {[%clk 0:00:42]}  Kc7 {[%clk 0:00:09]} 83. Ng6 {[%clk 0:00:34]}  Kc8 {[%clk 0:00:10]} 84. Nh8 {[%clk 0:00:34]}  Kc7 {[%clk 0:00:11]} 85. Nf7 {[%clk 0:00:35]}  Kc8 {[%clk 0:00:12]} 86. Ne5 {[%clk 0:00:32]}  Kc7 {[%clk 0:00:13]} 87. Nc6 {[%clk 0:00:33]}  Kc8 {[%clk 0:00:14]} 88. Nd8 {[%clk 0:00:31]}  Kc7 {[%clk 0:00:15]} 89. Nb7 {[%clk 0:00:32]}  Kc8 {[%clk 0:00:16]} 90. Nc5 {[%clk 0:00:33]}  Kc7 {[%clk 0:00:17]} 91. Ne4 {[%clk 0:00:32]}  Kc8 {[%clk 0:00:18]} 92. Nf6 {[%clk 0:00:32]}  Kc7 {[%clk 0:00:18]} 93. Nd5+ {[%clk 0:00:33]}  Kc8 {[%clk 0:00:19]} 94. Nb4 {[%clk 0:00:32]}  Kc7 {[%clk 0:00:20]} 95. Na6+ {[%clk 0:00:33]}  Kc8 {[%clk 0:00:21]} 96. Nb8 {[%clk 0:00:34]}  Kc7 {[%clk 0:00:22]} 97. Nd7 {[%clk 0:00:33]}  Kc8 {[%clk 0:00:23]} 98. Nc5 {[%clk 0:00:34]}  Kc7 {[%clk 0:00:24]} 1/2-1/2

[Event "January 2 Early 2024"]
[Site "https://www.chess.com"]
[Date "2024.01.02"]
[Round "9"]
[White "Ibarra Jerez, Jose Carlos"]
[Black "Rasulov, Vugar"]
[Result "0-1"]
[Board "18"]
[TimeControl "180+1"]
[WhiteFideId "2226332"]
[BlackFideId "13402390"]
[WhiteElo "2918"]
[BlackElo "2969"]
[WhiteTeam "ESP"]
[BlackTeam "AZE"]
[WhiteClock "0:00:00"]
[BlackClock "0:00:19"]

1. e4 {[%clk 0:03:00]}  e5 {[%clk 0:02:56]} 2. Nf3 {[%clk 0:03:00]}  Nc6 {[%clk 0:02:57]} 3. Nc3 {[%clk 0:03:00]}  Nf6 {[%clk 0:02:57]} 4. h3 {[%clk 0:03:01]}  Bb4 {[%clk 0:02:53]} 5. Nd5 {[%clk 0:03:01]}  Bc5 {[%clk 0:02:50]} 6. c3 {[%clk 0:02:59]}  d6 {[%clk 0:02:50]} 7. d4 {[%clk 0:02:53]}  Bb6 {[%clk 0:02:47]} 8. Bg5 {[%clk 0:02:52]}  exd4 {[%clk 0:02:43]} 9. Bxf6 {[%clk 0:02:38]}  gxf6 {[%clk 0:02:42]} 10. Nxb6 {[%clk 0:02:28]}  axb6 {[%clk 0:02:40]} 11. Nxd4 {[%clk 0:02:29]}  Qe7 {[%clk 0:02:25]} 12. Be2 {[%clk 0:02:24]}  Rg8 {[%clk 0:02:23]} 13. Bf3 {[%clk 0:02:16]}  Ne5 {[%clk 0:02:13]} 14. Qe2 {[%clk 0:02:03]}  c5 {[%clk 0:02:02]} 15. Nc2 {[%clk 0:01:58]}  f5 {[%clk 0:01:56]} 16. Ne3 {[%clk 0:01:41]}  Kf8 {[%clk 0:01:37]} 17. exf5 {[%clk 0:01:36]}  Qg5 {[%clk 0:01:28]} 18. g4 {[%clk 0:01:33]}  h5 {[%clk 0:01:08]} 19. h4 {[%clk 0:01:26]}  Qf4 {[%clk 0:01:08]} 20. Bd5 {[%clk 0:01:20]}  hxg4 {[%clk 0:01:07]} 21. O-O-O {[%clk 0:01:19]}  Bxf5 {[%clk 0:01:06]} 22. Bb3 {[%clk 0:01:00]}  Be4 {[%clk 0:01:01]} 23. Rhg1 {[%clk 0:00:47]}  b5 {[%clk 0:00:50]} 24. Qxb5 {[%clk 0:00:27]}  Qxf2 {[%clk 0:00:44]} 25. Nc2 {[%clk 0:00:10]}  c4 {[%clk 0:00:43]} 26. Ba4 {[%clk 0:00:10]}  Bc6 {[%clk 0:00:29]} 27. Qb4 {[%clk 0:00:10]}  Nd3+ {[%clk 0:00:26]} 28. Rxd3 {[%clk 0:00:11]}  Qxg1+ {[%clk 0:00:26]} 29. Rd1 {[%clk 0:00:10]}  Qg3 {[%clk 0:00:26]} 30. Bxc6 {[%clk 0:00:08]}  bxc6 {[%clk 0:00:27]} 31. Qb7 {[%clk 0:00:08]}  Kg7 {[%clk 0:00:24]} 32. Qxc6 {[%clk 0:00:08]}  Rge8 {[%clk 0:00:21]} 33. Nd4 {[%clk 0:00:08]}  Qf4+ {[%clk 0:00:19]} 34. Kb1 {[%clk 0:00:08]}  Qe4+ {[%clk 0:00:19]} 35. Qxe4 {[%clk 0:00:08]}  Rxe4 {[%clk 0:00:20]} 36. Nf5+ {[%clk 0:00:09]}  Kf6 {[%clk 0:00:20]} 37. Nxd6 {[%clk 0:00:08]}  Rf4 {[%clk 0:00:21]} 38. h5 {[%clk 0:00:06]}  Rd8 {[%clk 0:00:19]} 39. Ne4+ {[%clk 0:00:05]}  Ke7 {[%clk 0:00:19]} 40. Re1 {[%clk 0:00:06]}  Kf8 {[%clk 0:00:19]} 41. h6 {[%clk 0:00:05]}  Re8 {[%clk 0:00:18]} 42. h7 {[%clk 0:00:02]}  Kg7 {[%clk 0:00:19]} 43. h8=Q+ {[%clk 0:00:02]}  Kxh8 {[%clk 0:00:19]} 44. Rh1+ {[%clk 0:00:03]}  Kg7 {[%clk 0:00:19]} 45. Nd6 {[%clk 0:00:03]}  Re6 {[%clk 0:00:19]} 46. Nb5 {[%clk 0:00:03]}  g3 {[%clk 0:00:20]} 47. Nd4 {[%clk 0:00:03]}  Rxd4 {[%clk 0:00:18]} 48. cxd4 {[%clk 0:00:03]}  f5 {[%clk 0:00:19]} 49. Kc2 {[%clk 0:00:01]}  f4 {[%clk 0:00:19]} 50. Rh4 {[%clk 0:00:02]}  g2 {[%clk 0:00:18]} 51. Rg4+ {[%clk 0:00:00]}  Rg6 {[%clk 0:00:19]} 0-1

[Event "January 2 Early 2024"]
[Site "https://www.chess.com"]
[Date "2024.01.02"]
[Round "9"]
[White "Bok, Benjamin"]
[Black "Rustemov, Alexander"]
[Result "1-0"]
[Board "19"]
[TimeControl "180+1"]
[WhiteFideId "1017063"]
[BlackFideId "4119002"]
[WhiteElo "2953"]
[BlackElo "2874"]
[WhiteTeam "NED"]
[BlackTeam "RUS"]
[WhiteClock "0:00:07"]
[BlackClock "0:00:02"]

1. d4 {[%clk 0:03:00]}  d5 {[%clk 0:03:00]} 2. c4 {[%clk 0:03:00]}  c6 {[%clk 0:03:01]} 3. Nf3 {[%clk 0:03:00]}  Nf6 {[%clk 0:03:01]} 4. cxd5 {[%clk 0:03:00]}  cxd5 {[%clk 0:03:01]} 5. Nc3 {[%clk 0:03:01]}  Nc6 {[%clk 0:03:01]} 6. Bf4 {[%clk 0:03:01]}  a6 {[%clk 0:03:01]} 7. Rc1 {[%clk 0:03:01]}  Bf5 {[%clk 0:03:01]} 8. e3 {[%clk 0:03:01]}  Rc8 {[%clk 0:03:00]} 9. Be2 {[%clk 0:03:01]}  e6 {[%clk 0:02:59]} 10. O-O {[%clk 0:03:02]}  Bd6 {[%clk 0:02:50]} 11. Bxd6 {[%clk 0:03:02]}  Qxd6 {[%clk 0:02:49]} 12. Qb3 {[%clk 0:03:03]}  Rb8 {[%clk 0:02:25]} 13. Na4 {[%clk 0:02:56]}  Nd7 {[%clk 0:02:22]} 14. Nc5 {[%clk 0:02:53]}  Nxc5 {[%clk 0:02:17]} 15. Rxc5 {[%clk 0:02:54]}  O-O {[%clk 0:02:04]} 16. Rfc1 {[%clk 0:02:18]}  Bg4 {[%clk 0:02:01]} 17. Qb6 {[%clk 0:02:13]}  Bxf3 {[%clk 0:01:59]} 18. Bxf3 {[%clk 0:02:10]}  Qd8 {[%clk 0:01:58]} 19. Qxd8 {[%clk 0:02:05]}  Rfxd8 {[%clk 0:01:59]} 20. Be2 {[%clk 0:02:04]}  Ne7 {[%clk 0:01:52]} 21. Rc7 {[%clk 0:01:58]}  Nf5 {[%clk 0:01:51]} 22. Bd3 {[%clk 0:01:18]}  Nd6 {[%clk 0:01:51]} 23. h4 {[%clk 0:01:15]}  h6 {[%clk 0:01:50]} 24. g4 {[%clk 0:00:50]}  Kf8 {[%clk 0:01:49]} 25. Kg2 {[%clk 0:00:48]}  Rdc8 {[%clk 0:01:43]} 26. Kf3 {[%clk 0:00:42]}  Rxc7 {[%clk 0:01:35]} 27. Rxc7 {[%clk 0:00:43]}  Rc8 {[%clk 0:01:33]} 28. Rd7 {[%clk 0:00:30]}  Rc6 {[%clk 0:01:28]} 29. Rd8+ {[%clk 0:00:27]}  Ne8 {[%clk 0:01:28]} 30. Rb8 {[%clk 0:00:24]}  Rc7 {[%clk 0:01:27]} 31. Kf4 {[%clk 0:00:20]}  Ke7 {[%clk 0:01:25]} 32. g5 {[%clk 0:00:20]}  hxg5+ {[%clk 0:01:23]} 33. hxg5 {[%clk 0:00:21]}  Nd6 {[%clk 0:01:18]} 34. f3 {[%clk 0:00:20]}  Rc8 {[%clk 0:01:17]} 35. Rxc8 {[%clk 0:00:19]}  Nxc8 {[%clk 0:01:18]} 36. e4 {[%clk 0:00:20]}  f6 {[%clk 0:01:13]} 37. b4 {[%clk 0:00:16]}  Na7 {[%clk 0:01:06]} 38. gxf6+ {[%clk 0:00:13]}  gxf6 {[%clk 0:01:06]} 39. a3 {[%clk 0:00:11]}  Nc6 {[%clk 0:01:03]} 40. Ke3 {[%clk 0:00:09]}  Kd6 {[%clk 0:01:03]} 41. Bc2 {[%clk 0:00:07]}  a5 {[%clk 0:01:01]} 42. bxa5 {[%clk 0:00:05]}  Nxa5 {[%clk 0:01:00]} 43. a4 {[%clk 0:00:04]}  Nc4+ {[%clk 0:00:49]} 44. Kd3 {[%clk 0:00:04]}  b6 {[%clk 0:00:48]} 45. Kc3 {[%clk 0:00:04]}  Na5 {[%clk 0:00:44]} 46. Bd3 {[%clk 0:00:04]}  Nc6 {[%clk 0:00:44]} 47. Bb5 {[%clk 0:00:04]}  Ne7 {[%clk 0:00:44]} 48. Kb4 {[%clk 0:00:03]}  dxe4 {[%clk 0:00:40]} 49. fxe4 {[%clk 0:00:04]}  e5 {[%clk 0:00:41]} 50. Kc4 {[%clk 0:00:03]}  Ng6 {[%clk 0:00:40]} 51. Kc3 {[%clk 0:00:02]}  Nf4 {[%clk 0:00:38]} 52. Bf1 {[%clk 0:00:02]}  Ne6 {[%clk 0:00:38]} 53. dxe5+ {[%clk 0:00:02]}  fxe5 {[%clk 0:00:35]} 54. Kc4 {[%clk 0:00:03]}  Kc6 {[%clk 0:00:30]} 55. Bh3 {[%clk 0:00:02]}  Nc5 {[%clk 0:00:30]} 56. Kb4 {[%clk 0:00:01]}  Nd3+ {[%clk 0:00:28]} 57. Kc4 {[%clk 0:00:02]}  Nb2+ {[%clk 0:00:28]} 58. Kb4 {[%clk 0:00:02]}  Nd3+ {[%clk 0:00:23]} 59. Kc4 {[%clk 0:00:02]}  Nc5 {[%clk 0:00:20]} 60. Kb4 {[%clk 0:00:02]}  Kc7 {[%clk 0:00:17]} 61. Bf5 {[%clk 0:00:02]}  Kc6 {[%clk 0:00:16]} 62. Bg6 {[%clk 0:00:03]}  Na6+ {[%clk 0:00:16]} 63. Kc4 {[%clk 0:00:03]}  Nc5 {[%clk 0:00:17]} 64. Be8+ {[%clk 0:00:03]}  Kc7 {[%clk 0:00:17]} 65. Kd5 {[%clk 0:00:04]}  Nd3 {[%clk 0:00:17]} 66. Bb5 {[%clk 0:00:04]}  Nf2 {[%clk 0:00:04]} 67. Kxe5 {[%clk 0:00:04]}  Ng4+ {[%clk 0:00:04]} 68. Ke6 {[%clk 0:00:04]}  Nf2 {[%clk 0:00:04]} 69. e5 {[%clk 0:00:04]}  Ng4 {[%clk 0:00:03]} 70. Kf5 {[%clk 0:00:03]}  Ne3+ {[%clk 0:00:03]} 71. Kg6 {[%clk 0:00:03]}  Kd8 {[%clk 0:00:03]} 72. Kf7 {[%clk 0:00:03]}  Nd5 {[%clk 0:00:03]} 73. e6 {[%clk 0:00:03]}  Ne7 {[%clk 0:00:04]} 74. Bd7 {[%clk 0:00:02]}  Nd5 {[%clk 0:00:04]} 75. Bc6 {[%clk 0:00:02]}  Ne7 {[%clk 0:00:04]} 76. Bb5 {[%clk 0:00:02]}  Nc8 {[%clk 0:00:04]} 77. Kf6 {[%clk 0:00:02]}  Ne7 {[%clk 0:00:05]} 78. Ke5 {[%clk 0:00:02]}  Kc7 {[%clk 0:00:05]} 79. Bd7 {[%clk 0:00:03]}  Ng6+ {[%clk 0:00:05]} 80. Kf6 {[%clk 0:00:03]}  Nf8 {[%clk 0:00:05]} 81. Bb5 {[%clk 0:00:03]}  Kd6 {[%clk 0:00:04]} 82. e7 {[%clk 0:00:03]}  Nh7+ {[%clk 0:00:03]} 83. Kg6 {[%clk 0:00:03]}  Kxe7 {[%clk 0:00:01]} 84. Kxh7 {[%clk 0:00:04]}  Kf7 {[%clk 0:00:02]} 85. Kh6 {[%clk 0:00:05]}  Kf6 {[%clk 0:00:03]} 86. Kh5 {[%clk 0:00:05]}  Kf5 {[%clk 0:00:03]} 87. Ba6 {[%clk 0:00:05]}  Ke5 {[%clk 0:00:02]} 88. Kg6 {[%clk 0:00:05]}  Kd6 {[%clk 0:00:02]} 89. Kf6 {[%clk 0:00:05]}  Kc7 {[%clk 0:00:03]} 90. Bb5 {[%clk 0:00:06]}  Kb8 {[%clk 0:00:04]} 91. Ke7 {[%clk 0:00:06]}  Ka7 {[%clk 0:00:05]} 92. Kd7 {[%clk 0:00:06]}  Kb7 {[%clk 0:00:02]} 93. Kd6 {[%clk 0:00:07]} 1-0

[Event "January 2 Early 2024"]
[Site "https://www.chess.com"]
[Date "2024.01.02"]
[Round "9"]
[White "Drygalov, Sergey"]
[Black "Durarbayli, Vasif"]
[Result "1-0"]
[Board "20"]
[TimeControl "180+1"]
[WhiteFideId "24171743"]
[BlackFideId "13402935"]
[WhiteElo "2952"]
[BlackElo "2853"]
[WhiteTeam "RUS"]
[BlackTeam "AZE"]
[WhiteClock "0:01:29"]
[BlackClock "0:00:47"]

1. d4 {[%clk 0:02:59]}  Nf6 {[%clk 0:02:59]} 2. c4 {[%clk 0:03:00]}  g6 {[%clk 0:02:59]} 3. Nc3 {[%clk 0:03:00]}  d5 {[%clk 0:02:59]} 4. cxd5 {[%clk 0:03:01]}  Nxd5 {[%clk 0:03:00]} 5. e4 {[%clk 0:03:02]}  Nxc3 {[%clk 0:03:00]} 6. bxc3 {[%clk 0:03:03]}  Bg7 {[%clk 0:03:00]} 7. Nf3 {[%clk 0:03:03]}  c5 {[%clk 0:03:01]} 8. Be3 {[%clk 0:03:04]}  Qa5 {[%clk 0:02:58]} 9. Qd2 {[%clk 0:03:02]}  O-O {[%clk 0:02:55]} 10. Rc1 {[%clk 0:03:02]}  cxd4 {[%clk 0:02:49]} 11. cxd4 {[%clk 0:03:02]}  Nc6 {[%clk 0:02:48]} 12. Qxa5 {[%clk 0:02:50]}  Nxa5 {[%clk 0:02:49]} 13. Bb5 {[%clk 0:02:47]}  f5 {[%clk 0:02:33]} 14. e5 {[%clk 0:02:42]}  Be6 {[%clk 0:02:29]} 15. O-O {[%clk 0:02:35]}  Rfc8 {[%clk 0:02:23]} 16. Ng5 {[%clk 0:01:59]}  Bxa2 {[%clk 0:01:59]} 17. Ra1 {[%clk 0:01:53]}  Rc2 {[%clk 0:01:50]} 18. Bd3 {[%clk 0:01:46]}  Rac8 {[%clk 0:01:38]} 19. Bxc2 {[%clk 0:01:46]}  Rxc2 {[%clk 0:01:39]} 20. Rfc1 {[%clk 0:01:46]}  Rxc1+ {[%clk 0:01:40]} 21. Bxc1 {[%clk 0:01:46]}  Nb3 {[%clk 0:01:36]} 22. Rxa2 {[%clk 0:01:46]}  Nxc1 {[%clk 0:01:36]} 23. Rc2 {[%clk 0:01:47]}  Bh6 {[%clk 0:01:30]} 24. Rc8+ {[%clk 0:01:37]}  Kg7 {[%clk 0:01:30]} 25. Ne6+ {[%clk 0:01:37]}  Kf7 {[%clk 0:01:30]} 26. Nd8+ {[%clk 0:01:37]}  Ke8 {[%clk 0:01:27]} 27. e6 {[%clk 0:01:37]}  Kf8 {[%clk 0:01:13]} 28. Nf7+ {[%clk 0:01:37]}  Kg7 {[%clk 0:01:14]} 29. Nxh6 {[%clk 0:01:37]}  Ne2+ {[%clk 0:01:15]} 30. Kf1 {[%clk 0:01:38]}  Nxd4 {[%clk 0:01:15]} 31. Nf7 {[%clk 0:01:38]}  Nxe6 {[%clk 0:01:15]} 32. Ne5 {[%clk 0:01:38]}  a6 {[%clk 0:01:03]} 33. Nd7 {[%clk 0:01:30]}  Kf7 {[%clk 0:00:47]} 34. Nc5 {[%clk 0:01:29]} 1-0